[Event "4NCL 2022-2023"]
[Site "Daventry"]
[Date "2023.02.12"]
[Round "6.41"]
[White "Murphy, Conor E"]
[Black "Speelman, Jon S"]
[Result "1-0"]
[ECO "B10"]
[WhiteElo "2431"]
[BlackElo "2500"]
[Annotator "TA"]
[PlyCount "105"]
[EventDate "2022.10.20"]
[EventType "team-tourn"]
[EventCountry "ENG"]
[SourceTitle "playchess.com"]
[Source "ChessBase"]
[SourceQuality "1"]
[TimeControl "40/6000+30:2400+30"]

{[%evp 9,105,15,49,49,54,-6,6,-20,6,0,-3,-18,1,-11,66,24,31,27,46,55,68,61,77,36,31,-4,58,42,39,55,111,90,108,97,271,285,287,293,577,581,538,176,176,175,163,168,171,166,220,202,233,235,237,231,233,236,224,219,482,492,477,490,486,458,445,445,455,429,578,563,582,560,568,430,716,717,680,603,1150,959,859,196,6207,5197,3003,2529,29968,6506,29970,29970,29980,29981,29980,29981,29981,29982,29982,29983]} 1. e4 {[%emt 0:05:44]} c6 {[%emt 0:00:11]} 2. Nf3 {[%emt 0:00:29]} d5 {[%emt 0:00:11]} 3. d3 {[%emt 0:00:10]} Qc7 {[%emt 0:00:16]} 4. Nc3 {[%emt 0:01:01]} dxe4 {[%emt 0:01:29]} 5. dxe4 {[%emt 0:01:30]} Bg4 {[%emt 0:00:05]} 6. h3 {[%emt 0:06:39] B10: Caro-Kann: 2 d3 and 2 c4.} Bh5 {[%emt 0:00:02] [#]} 7. Bc4 $146 {[%emt 0:04:26]} (7. g4 $14 Bg6 8. h4) ({Predecessor:} 7. g4 Bg6 8. Bg2 Nd7 9. Qe2 e5 10. Be3 Ngf6 11. Nh4 Nc5 12. Nf5 O-O-O 13. O-O {1-0 Subelj,J (2426)-Cvitan,E (2255) Belgrade Serbia op 2021 (7)}) 7... e6 $11 {[%emt 0:01:43]} 8. Qe2 {[%emt 0:03:32] The position is equal.} Nd7 {[%emt 0:01:23]} 9. g4 {[%emt 0:13:51]} Bg6 {[%emt 0:00:06]} 10. Nh4 {[%emt 0:00:37]} Be7 {[%emt 0:08:55] Inhibits f4.} 11. Ng2 {[%emt 0:02:29]} e5 {[%emt 0:03:50]} (11... h6 $11) 12. h4 {[%emt 0:10:36]} h5 {[%emt 0:00:49]} 13. g5 {[%emt 0:00:27]} Bb4 {[%emt 0:05:40]} 14. Bd2 {[%emt 0:03:52]} Ne7 {[%emt 0:01:33]} 15. a3 {[%emt 0:06:09]} Bd6 {[%emt 0:03:04]} 16. Ne3 {[%emt 0:05:18] White is more active.} Nc5 {[%emt 0:07:06]} 17. f3 {[%emt 0:02:33]} a5 {[%emt 0:01:58]} (17... b5 $11) 18. O-O-O $14 {[%emt 0:05:00]} O-O {[%emt 0:01:01]} 19. a4 {[%emt 0:04:56]} Rfd8 {[%emt 0:06:44]} ({Better is} 19... Rad8 $14) 20. Ba2 $1 $16 {[%emt 0:02:13]} Nc8 {[%emt 0:01:30]} 21. Nc4 $1 {[%emt 0:05:22] Be3 is the strong threat.} Bf8 $2 {[%emt 0:04:57] A mistake that costs the game.} (21... Nb6 $16) 22. Qh2 $18 {[%emt 0:01:47]} Re8 {[%emt 0:00:29]} 23. f4 $1 {[%emt 0:01:52] And now f5 would win.} exf4 {[%emt 0:03:14]} (23... Nxe4 24. Nxe5 Nxd2) 24. Bxf4 {[%emt 0:00:54]} Qe7 {[%emt 0:00:04]} 25. Nd6 {[%emt 0:03:02]} (25. Ne5 Kh7 26. Bg3) 25... Rd8 {[%emt 0:00:06][%cal Rc8d6]} 26. Nf5 {[%emt 0:02:19]} Rxd1+ {[%emt 0:02:39]} 27. Rxd1 {[%emt 0:01:01]} Qe8 {[%emt 0:00:04]} 28. Bc7 $1 $36 {[%emt 0:02:08][%mdl 2048] White is on the roll.} Ne6 {[%emt 0:02:37] Repels Rd8} (28... Nd7 {is a better defense.} 29. Qd2 Nc5) 29. Qe5 $1 {[%emt 0:01:36][%cal Od1d8] Black must now prevent Rd8!} Nxc7 {[%emt 0:07:18]} 30. Qxc7 {[%emt 0:00:26] Threatens to win with Rd8.} Ne7 {[%emt 0:00:04]} 31. Nd6 {[%emt 0:03:30][%cal Bf5d6,Bd6b7,Bb7a5,Ba5c6][%mdl 32] A dynamic duo of knights.} Qb8 {[%emt 0:01:21]} 32. Qxb7 {[%emt 0:03:50]} Qxb7 {[%emt 0:01:59]} 33. Nxb7 {[%emt 0:00:03]} Nc8 $2 {[%emt 0:00:06]} (33... Kh8 34. Rd6 Kh7) 34. Rd8 {[%emt 0:01:42]} Nb6 {[%emt 0:00:05]} 35. Rxa8 {[%emt 0:01:28]} Nxa8 {[%emt 0:00:04]} 36. Nxa5 {[%emt 0:00:17]} Bd6 {[%emt 0:00:14]} 37. Nxc6 {[%emt 0:01:10]} Bg3 {[%emt 0:00:04]} 38. Bd5 {[%emt 0:03:01]} Nc7 {[%emt 0:00:40]} 39. b4 {[%emt 0:01:41]} (39. Ne7+ Kf8 $18) 39... Bxh4 {[%emt 0:00:28]} 40. b5 {[%emt 0:00:31]} ({Weaker is} 40. Ne7+ Kh7 41. Nxg6 Kxg6 $16) 40... Bxg5+ {[%emt 0:03:55]} 41. Kd1 {[%emt 0:00:00] Hoping for b6.} Nxd5 {[%emt 0:00:00]} (41... h4 $142 42. b6 Na6) 42. exd5 {[%emt 0:21:40][%mdl 4096] Endgame KBB-KNN} (42. Nxd5 Bxe4 43. Nc3 Bg2 $17) 42... h4 {[%emt 0:00:00]} 43. Ke1 {[%emt 0:03:25]} Bh5 {[%emt 0:06:12]} 44. Kf2 {[%emt 0:06:01]} Bf4 {[%emt 0:00:25]} 45. Ne2 $2 {[%emt 0:01:23]} (45. b6) 45... Bxe2 $2 {[%emt 0:02:51]} (45... Bd6) 46. Kxe2 {[%emt 0:00:12] b6 would kill now. KB-KN} h3 {[%emt 0:00:08] [#]} 47. Kf1 $1 {[%emt 0:01:21]} g5 {[%emt 0:00:26]} 48. b6 {[%emt 0:01:21] Threatening mate with a5.} g4 {[%emt 0:00:05] [#]} 49. b7 $1 {[%emt 0:00:24] White mates.} g3 {[%emt 0:00:03]} 50. b8=Q+ {[%emt 0:10:31]} (50. b8=B g2+ 51. Kf2 Be3+ 52. Kxe3 g1=Q+ 53. Kd3 Qf1+ 54. Kd4 f5 55. Ne7+ Kf7 56. Nxf5 Qxf5 $19) 50... Bxb8 {[%emt 0:00:04]} 51. Nxb8 {[%emt 0:00:00]} f5 {[%emt 0:00:11]} 52. Nc6 {[%emt 0:00:00]} f4 {[%emt 0:00:07]} 53. Nd4 {[%emt 0:00:00] Weighted Error Value: White=0.32/Black=0.60} 1-0

[Event "4NCL 2022-2023"]
[Site "Daventry"]
[Date "2023.02.12"]
[Round "6.42"]
[White "Wadsworth, Matthew J"]
[Black "Bisby, Daniel L"]
[Result "1/2-1/2"]
[ECO "E61"]
[WhiteElo "2469"]
[BlackElo "2277"]
[Annotator "TA"]
[PlyCount "82"]
[EventDate "2022.10.20"]
[EventType "team-tourn"]
[EventCountry "ENG"]
[SourceTitle "playchess.com"]
[Source "ChessBase"]
[SourceQuality "1"]
[TimeControl "40/6000+30:2400+30"]

{[%evp 17,82,0,3,3,13,16,7,4,24,8,3,6,10,10,46,0,13,0,14,7,19,-112,-117,-135,-133,-109,-106,-140,-134,-166,-164,-158,-129,-246,-242,-236,-234,-223,-232,-586,-599,-579,-577,-583,-559,-651,0,0,0,0,166,169,626,0,179,175,340,306,5407,5431,5143,4921,2243,0,0,0,1338]} 1. c4 {[%emt 0:00:03]} Nf6 {[%emt 0:06:17]} 2. g3 {[%emt 0:00:09]} g6 {[%emt 0:00:42]} 3. Bg2 {[%emt 0:00:10]} Bg7 {[%emt 0:00:10]} 4. Nc3 {[%emt 0:00:10]} O-O {[%emt 0:00:46]} 5. d4 {[%emt 0:00:18]} d6 {[%emt 0:01:22]} 6. h3 {[%emt 0:00:10]} c5 {[%emt 0:05:17]} 7. e3 {[%emt 0:00:41]} Nc6 {[%emt 0:03:32]} 8. Nge2 {[%emt 0:02:42]} Bd7 {[%emt 0:06:49]} 9. O-O {[%emt 0:02:26]} a6 {[%emt 0:01:00]} 10. b3 {[%emt 0:07:03] E61: King's Indian: Early deviations for White, including Smyslov System.} Rb8 {[%emt 0:02:16]} 11. a4 {[%emt 0:01:43]} Nb4 {[%emt 0:07:27]} 12. e4 {[%emt 0:11:09]} Qc8 {[%emt 0:09:49]} 13. Kh2 {[%emt 0:05:24] [#]} ({Much weaker is} 13. e5 dxe5 14. dxe5 Nh5 $15) 13... b5 $146 {[%emt 0:06:09]} ({Predecessor:} 13... Ne8 14. Be3 b6 15. Qd2 f5 16. Rad1 Nc6 17. exf5 Rxf5 18. Ne4 Nf6 19. Nxf6+ Rxf6 {0-1 Heino,H-Harestad,T WchT Students 19th final B 1972 (4.3)}) 14. axb5 {[%emt 0:09:35]} axb5 {[%emt 0:01:38]} 15. e5 {[%emt 0:03:36]} Ne8 {[%emt 0:03:34][%cal Bf6e8,Be8d6,Bd6f5][%mdl 32]} (15... Nh5 {feels hotter.} 16. exd6 bxc4 17. dxe7 Re8) 16. exd6 {[%emt 0:06:14]} (16. Nxb5 $14 Bxb5 17. cxb5) 16... Nxd6 {[%emt 0:02:42]} 17. dxc5 {[%emt 0:02:46]} Qxc5 {[%emt 0:01:13]} 18. Be3 {[%emt 0:00:40]} Qc8 {[%emt 0:14:20]} 19. c5 {[%emt 0:22:12]} (19. Ba7 $11 Rb7 20. Bxb7 Nxb7 21. Rc1) 19... Nf5 $17 {[%emt 0:02:32]} 20. Bf4 {[%emt 0:00:32]} e5 {[%emt 0:01:10]} 21. Bd2 {[%emt 0:00:32]} Bc6 {[%emt 0:04:14]} (21... Qxc5 $2 22. Ne4 Qe7 23. Bxb4 Qxb4 24. Qxd7 $18) 22. Ne4 {[%emt 0:01:52] [#]} Rd8 $1 {[%emt 0:01:37]} 23. Bxb4 {[%emt 0:08:06] Hoping for Qb1.} Rxd1 {[%emt 0:00:11]} 24. Rfxd1 {[%emt 0:00:02]} Ra8 {[%emt 0:07:27] ...Rxa1 would be deadly.} 25. N2c3 {[%emt 0:04:40]} (25. Nd6 $17 {was worth a try.} Nxd6 26. cxd6 Rxa1 27. Rxa1 Bxg2 28. Kxg2) 25... Rxa1 $19 {[%emt 0:02:22][%mdl 64] Deflection} 26. Rxa1 {[%emt 0:00:37]} Nd4 {[%emt 0:01:12]} 27. Nd6 {[%emt 0:07:58] [#]} Qe6 {[%emt 0:01:15]} 28. Bxc6 $2 {[%emt 0:03:50]} (28. Ra6 Bxg2 29. Kxg2) 28... Nxc6 {[%emt 0:00:09]} 29. Ra8+ {[%emt 0:00:20]} Bf8 {[%emt 0:00:12]} 30. Ba3 {[%emt 0:02:17]} b4 {[%emt 0:05:32]} ({Stronger than} 30... Qxb3 31. Bc1 g5 32. Bxg5 $11) 31. Bc1 {[%emt 0:00:03][%cal Oc1h6] Threatening mate with Bh6!} g5 $2 {[%emt 0:04:22]} (31... bxc3 $19 32. Bh6 Qe7) 32. Nce4 $11 {[%emt 0:01:27]} h6 {[%emt 0:02:57] Strongly threatening ...f5.} 33. g4 {[%emt 0:02:50][%cal Bg3g4,Bg4f5][%mdl 32]} Nd4 $2 {[%emt 0:02:42]} (33... f6 $1 $11) 34. Be3 $18 {[%emt 0:00:27]} f5 $2 {[%emt 0:02:45]} (34... Nxb3 $2 35. c6 Nd4 36. Bxd4 exd4 37. Re8 $18) (34... Nf3+ 35. Kg3 Nd4) 35. Re8 $2 {[%emt 0:00:23]} (35. gxf5 $18 {Threatens to win with Bxd4.} Qe7 36. f6) 35... Qxb3 $2 {[%emt 0:00:50]} (35... Nf3+ $1 $11 {and Black is okay.} 36. Kg3 f4+ 37. Kxf3 Qxb3 {[%mdl 64] Pin}) 36. gxf5 {[%emt 0:01:24] And now Rc8 would win.} Nf3+ $2 {[%emt 0:00:59]} (36... Qc2) 37. Kg3 {[%emt 0:00:41] c6 is the strong threat.} Qd1 $2 {[%emt 0:00:26]} (37... Nd4 38. Rc8 Nxf5+ 39. Nxf5 Qb1) 38. Nf6+ {[%emt 0:00:36]} Kg7 {[%emt 0:00:20]} 39. Nh5+ {[%emt 0:00:34] Excellent horsemanship.} Kg8 {[%emt 0:00:16]} 40. Nf6+ {[%emt 0:00:42]} Kg7 {[%emt 0:00:14] ( -> ...Ne1)} 41. Nh5+ {[%emt 0:40:11]} Kg8 {[%emt 0:40:30][%mdl 32768] An exciting game.   Weighted Error Value: White=0.51/Black=0.58. An unexpected result.} 1/2-1/2

[Event "4NCL 2022-2023"]
[Site "Daventry"]
[Date "2023.02.12"]
[Round "6.43"]
[White "McClement, Andrew"]
[Black "Harvey, Marcus R"]
[Result "1/2-1/2"]
[ECO "E17"]
[WhiteElo "2210"]
[BlackElo "2471"]
[Annotator "TA"]
[PlyCount "56"]
[EventDate "2022.10.20"]
[EventType "team-tourn"]
[EventCountry "ENG"]
[SourceTitle "playchess.com"]
[Source "ChessBase"]
[SourceQuality "1"]
[TimeControl "40/6000+30:2400+30"]

{[%evp 12,56,23,21,28,21,31,1,11,1,23,25,27,15,22,15,32,6,12,30,25,25,29,32,38,23,73,64,82,60,59,56,72,40,66,68,67,41,41,47,42,45,43,43,79,69,85]} 1. Nf3 {[%emt 0:00:02]} b6 {[%emt 0:19:12]} 2. g3 {[%emt 0:02:49]} Bb7 {[%emt 0:00:48]} 3. Bg2 {[%emt 0:00:02]} d5 {[%emt 0:06:29]} 4. O-O {[%emt 0:02:46]} Nf6 {[%emt 0:03:31]} 5. c4 {[%emt 0:01:07]} e6 {[%emt 0:03:15]} 6. d4 {[%emt 0:07:17]} Be7 {[%emt 0:03:42]} 7. Qa4+ {[%emt 0:07:50] 7.cxd5 is becoming the main line.} c6 {[%emt 0:03:58] E17: Queen's Indian: 4 g3 Bb7 5 Bg2 Be7.} 8. cxd5 {[%emt 0:03:42]} exd5 {[%emt 0:04:16]} 9. Rd1 {[%emt 0:08:28]} O-O {[%emt 0:00:46] The position is equal.} 10. Nc3 {[%emt 0:00:46] [#]} b5 $146 {[%emt 0:04:44]} ({Predecessor:} 10... Re8 11. Ne5 Bd6 12. Nd3 Ne4 13. Nxe4 dxe4 14. Ne5 Bxe5 15. dxe5 Qe7 16. Qxe4 Nd7 {1-0 Pogromsky,M (2411)-Djachkov,S (2358) Stone Flower 14th 2013 (6)}) 11. Qc2 {[%emt 0:00:15]} Nbd7 {[%emt 0:00:12]} 12. b3 {[%emt 0:12:40]} Re8 {[%emt 0:03:36]} 13. Bb2 {[%emt 0:00:11]} a5 {[%emt 0:08:43]} 14. Rac1 {[%emt 0:01:57]} (14. Ne5 {is interesting.} a4 15. Rac1 a3 16. Ba1) 14... a4 {[%emt 0:01:49]} 15. Ne5 {[%emt 0:11:59]} axb3 {[%emt 0:07:47]} 16. axb3 {[%emt 0:00:02]} Bd6 {[%emt 0:01:21]} 17. Nxd7 {[%emt 0:08:48]} Qxd7 {[%emt 0:04:12]} 18. e4 {[%emt 0:01:29] [#] e5 is the strong threat.} dxe4 {[%emt 0:09:29]} ({Resist} 18... b4 19. Na4 dxe4 20. Nb6 $16) (18... Be7 $11 {keeps the balance.}) 19. Nxe4 $16 {[%emt 0:00:21]} Nd5 {[%emt 0:04:40]} 20. Nc5 {[%emt 0:10:16]} Bxc5 {[%emt 0:00:04]} 21. dxc5 {[%emt 0:00:09]} Qe6 {[%emt 0:00:21]} 22. Qd2 {[%emt 0:04:52] Strongly threatening Bxd5.} Rad8 {[%emt 0:05:12]} 23. Re1 {[%emt 0:03:07]} Qd7 {[%emt 0:02:37]} 24. Qg5 {[%emt 0:04:18][%csl Gb2][%cal Rg5g7] [#] White is more active.} f6 {[%emt 0:01:42]} 25. Bxd5+ {[%emt 0:00:38]} Qxd5 {[%emt 0:00:48]} 26. Bxf6 {[%emt 0:00:03][%csl Gf6][%cal Rg5g7]} Qxg5 {[%emt 0:00:24]} 27. Bxg5 {[%emt 0:00:02]} Rxe1+ {[%emt 0:01:49]} 28. Rxe1 {[%emt 0:00:03]} Rd5 {[%emt 0:01:18] Weighted Error Value: White=0.08 (flawless) /Black=0.10 (very precise)} 1/2-1/2

[Event "4NCL 2022-2023"]
[Site "Daventry"]
[Date "2023.02.12"]
[Round "6.44"]
[White "McDonald, Neil"]
[Black "Robertson, J Stuart"]
[Result "1-0"]
[ECO "B33"]
[WhiteElo "2408"]
[BlackElo "2155"]
[Annotator "TA"]
[PlyCount "61"]
[EventDate "2022.10.20"]
[EventType "team-tourn"]
[EventCountry "ENG"]
[SourceTitle "playchess.com"]
[Source "ChessBase"]
[SourceQuality "1"]
[TimeControl "40/6000+30:2400+30"]

{[%evp 20,61,33,7,5,13,12,6,25,18,26,31,28,0,36,33,39,34,66,68,93,91,163,166,154,175,233,231,226,239,288,270,627,627,627,627,624,599,594,588,742,742,5264,5243]} 1. e4 {[%emt 0:00:03]} c5 {[%emt 0:06:28]} 2. Nf3 {[%emt 0:00:15][%cal Bg1f3,Bf3d4,Bd4b5,Bb5a3,Ba3c2][%mdl 32]} Nc6 {[%emt 0:00:03]} 3. d4 {[%emt 0:00:08]} cxd4 {[%emt 0:00:06]} 4. Nxd4 {[%emt 0:00:04]} Nf6 {[%emt 0:00:04]} 5. Nc3 {[%emt 0:00:06]} e5 {[%emt 0:00:03]} 6. Ndb5 {[%emt 0:00:05]} d6 {[%emt 0:00:08]} 7. Bg5 {[%emt 0:00:06]} a6 {[%emt 0:00:05]} 8. Na3 {[%emt 0:00:05]} b5 {[%emt 0:00:04][%cal Bb7b5,Bb5b4][%mdl 32]} 9. Nd5 {[%emt 0:00:04]} Be7 {[%emt 0:00:04]} 10. Bxf6 {[%emt 0:00:05]} Bxf6 {[%emt 0:00:03]} 11. c4 {[%emt 0:00:15][%cal Bc2c4,Bc4d5,Bd5c6][%mdl 32]} b4 $1 {[%emt 0:00:06] B33: Sicilian: Pelikan and Sveshnikov Variations.} 12. Nc2 {[%emt 0:00:07]} O-O {[%emt 0:00:19]} 13. g3 {[%emt 0:00:34]} Be6 {[%emt 0:01:18] The position is equal.} 14. Bg2 {[%emt 0:00:29]} Bxd5 {[%emt 0:00:18]} 15. cxd5 {[%emt 0:00:05]} Nd4 {[%emt 0:00:03]} 16. O-O {[%emt 0:00:49] [#]} Qd7 $146 {[%emt 0:09:39]} ({Predecessor:} 16... Nxc2 17. Qxc2 Bg5 18. h4 Bh6 19. a3 a5 20. axb4 axb4 21. Bh3 Ra5 {½-½ Jakovenko,D (2719)-Giri,A (2797) Shenzhen Du Te Cup 3rd 2019 (4)}) 17. Nxd4 {[%emt 0:10:22]} exd4 {[%emt 0:00:05]} 18. Rc1 {[%emt 0:02:11]} Rfc8 {[%emt 0:08:52] [#]} 19. Rc6 $1 {[%emt 0:02:17]} Rxc6 {[%emt 0:09:40]} (19... a5 20. Qd3) 20. dxc6 {[%emt 0:00:09]} Qe6 {[%emt 0:00:06]} (20... Qxc6 $2 21. e5 d5 22. exf6 $18) (20... Qc7 $16) 21. Qa4 $18 {[%emt 0:07:24]} a5 {[%emt 0:13:57]} 22. Qb5 {[%emt 0:13:20][%cal Oe4e5] e5! would be deadly.} d3 {[%emt 0:02:05]} (22... Kf8 {was worth a try.} 23. b3 Bd8) 23. Rd1 {[%emt 0:03:27][%cal Bf1d1,Bd1d3,Bd3f3,Bf3f7,Bf7c7][%mdl 32]} (23. Qxd3 $6 Bxb2 24. Rd1 g6 $16) 23... Bxb2 {[%emt 0:03:14]} 24. Rxd3 {[%emt 0:01:05] aiming for c7.} ({Don't play} 24. Qxd3 $6 g6 $16) 24... g6 {[%emt 0:06:08] Black is weak on the light squares} (24... Qxa2 $2 25. c7 Rf8 26. Qc6 $18) 25. Qb7 {[%emt 0:05:00]} Re8 {[%emt 0:03:50] [#]} (25... Rf8 26. Rd5 Kg7) 26. e5 $1 {[%emt 0:05:52][%mdl 512] White is clearly winning.} Bxe5 {[%emt 0:18:06]} 27. Bd5 {[%emt 0:02:26]} Qe7 {[%emt 0:00:30]} 28. Rf3 {[%emt 0:05:51]} Qxb7 {[%emt 0:05:30]} 29. cxb7 {[%emt 0:00:08]} Kh8 {[%emt 0:00:28]} 30. Rxf7 {[%emt 0:01:25] Rc7 would kill now.} Bd4 {[%emt 0:00:28]} 31. Rc7 {[%emt 0:02:30] Weighted Error Value: White=0.04 (flawless) /Black=0.47} 1-0

[Event "4NCL 2022-2023"]
[Site "Daventry"]
[Date "2023.02.12"]
[Round "6.45"]
[White "Gallagher, Daniel GH"]
[Black "Greet, Andrew N"]
[Result "0-1"]
[ECO "C11"]
[WhiteElo "2218"]
[BlackElo "2408"]
[Annotator "TA"]
[PlyCount "54"]
[EventDate "2022.10.20"]
[EventType "team-tourn"]
[EventCountry "ENG"]
[SourceTitle "playchess.com"]
[Source "ChessBase"]
[SourceQuality "1"]
[TimeControl "40/6000+30:2400+30"]

{[%evp 20,54,8,0,-10,-10,-9,0,0,-1,0,0,0,-72,-73,-114,-37,-56,-72,-65,48,51,43,25,31,15,25,0,24,31,84,77,73,80,72,-2029,-1891]} 1. e4 {[%emt 0:00:11][%cal Be2e4,Be4e5][%mdl 32] Finkel,Alexander} e6 {[%emt 0:13:06]} 2. d4 {[%emt 0:00:19]} d5 {[%emt 0:00:05]} 3. Nc3 {[%emt 0:00:23]} Nf6 {[%emt 0:05:32]} 4. e5 {[%emt 0:00:22]} Nfd7 {[%emt 0:00:07]} 5. f4 {[%emt 0:00:17]} c5 {[%emt 0:00:08]} 6. Nf3 {[%emt 0:00:17]} Nc6 {[%emt 0:00:22]} 7. Be3 {[%emt 0:00:18]} a6 {[%emt 0:03:12]} 8. a3 {[%emt 0:00:37]} cxd4 {[%emt 0:02:53]} 9. Nxd4 {[%emt 0:00:56]} Bc5 {[%emt 0:00:45]} 10. Qd2 {[%emt 0:06:55]} O-O {[%emt 0:01:48]} 11. O-O-O {[%emt 0:04:45]} Nxd4 {[%emt 0:10:00] C11: French: Classical System: 4 e5 and 4 Bg5 dxe4.} 12. Bxd4 {[%emt 0:00:06]} b5 {[%emt 0:00:11]} 13. Bxc5 {[%emt 0:10:08]} Nxc5 {[%emt 0:00:06] The position is equal.} 14. Qd4 {[%emt 0:00:28]} Qc7 {[%emt 0:04:28]} 15. h4 {[%emt 0:07:56]} Bd7 {[%emt 0:03:58]} 16. f5 {[%emt 0:14:34] [#]} Rac8 $146 {[%emt 0:23:27][%cal Ba8c8,Bc8b8,Bb8b6,Bb6b2][%mdl 32]} ({Predecessor:} 16... Rfc8 17. f6 gxf6 18. exf6 Kh8 19. Kb1 Rab8 20. Be2 a5 21. Bh5 b4 22. Bxf7 e5 {0-1 Apicella,M (2508)-Gurevich,M (2688) Clichy 2001 (7)}) 17. Kb1 {[%emt 0:27:32] [#]} Na4 {[%emt 0:04:07]} (17... Ne4 $1 $17 18. f6 (18. Nxe4 dxe4 19. Rd2 Bc6 $17) 18... Nxc3+ 19. bxc3 Qxc3 20. Qxc3 Rxc3) 18. Rh3 $15 {[%emt 0:00:38]} exf5 {[%emt 0:00:18][%cal Of5f4] Threatens to win with ...f4!} 19. Rd2 {[%emt 0:06:02]} Be6 {[%emt 0:07:26]} (19... Nb6 $15) 20. Nxa4 $14 {[%emt 0:01:08]} bxa4 {[%emt 0:00:03]} 21. Bxa6 {[%emt 0:05:10] Hoping for Rc3.} Rb8 {[%emt 0:03:31]} 22. Bd3 {[%emt 0:01:52]} Rb6 {[%emt 0:01:07]} 23. Rf3 {[%emt 0:02:41]} Rfb8 {[%emt 0:00:48] ...Rxb2+ would be deadly.} 24. c3 {[%emt 0:00:10]} g6 {[%emt 0:10:30]} (24... h5 $14) 25. h5 $1 $16 {[%emt 0:00:40]} Qe7 {[%emt 0:02:41]} 26. hxg6 {[%emt 0:03:41]} hxg6 {[%emt 0:01:18]} 27. Ka1 $2 {[%emt 0:04:09][%mdl 8192] [#]} ({Worse is} 27. Qxa4 Bd7 28. Qa5 (28. Qa7 $2 Qd8 $19) 28... Qxe5 $17) (27. Kc1 $16) 27... Rxb2 $3 {[%emt 0:01:18][%mdl 576] Remove Defender, Decoy, Back Rank.   Weighted Error Value: White=0.34/Black=0.21 (precise)} 0-1

[Event "4NCL 2022-2023"]
[Site "Daventry"]
[Date "2023.02.12"]
[Round "6.46"]
[White "Fitzsimons, David"]
[Black "Lee, Richard W Y"]
[Result "1-0"]
[ECO "C02"]
[WhiteElo "2342"]
[BlackElo "2111"]
[Annotator "TA"]
[PlyCount "53"]
[EventDate "2022.10.20"]
[EventType "team-tourn"]
[EventCountry "ENG"]
[SourceTitle "playchess.com"]
[Source "ChessBase"]
[SourceQuality "1"]
[TimeControl "40/6000+30:2400+30"]

{[%evp 14,52,12,15,20,5,5,5,7,0,0,0,0,0,4,-9,0,0,0,0,0,0,33,39,38,39,82,76,63,59,115,83,394,389,379,336,350,343,3206,3079,29999]} 1. e4 {[%emt 0:05:30]} e6 {[%emt 0:00:22]} 2. d4 {[%emt 0:00:54]} d5 {[%emt 0:00:12]} 3. e5 {[%emt 0:00:04]} c5 {[%emt 0:00:19]} 4. c3 {[%emt 0:00:09]} Qb6 {[%emt 0:00:29]} 5. Nf3 {[%emt 0:00:07]} Bd7 {[%emt 0:01:26]} 6. Be2 {[%emt 0:00:55]} cxd4 {[%emt 0:00:44]} 7. cxd4 {[%emt 0:00:18]} Bb5 {[%emt 0:00:20]} 8. Nc3 {[%emt 0:00:17]} Bxe2 {[%emt 0:00:25] C02: French: Advance Variation.} 9. Nxe2 {[%emt 0:00:10]} Ne7 {[%emt 0:01:12] was the old line (9...Bb4+).} 10. h4 {[%emt 0:02:45]} h5 {[%emt 0:11:12] The position is equal.} 11. Ng3 {[%emt 0:24:16] [#]} Qa6 $146 {[%emt 0:19:19]} ({Predecessor:} 11... g6 12. O-O Nf5 13. Nxf5 gxf5 14. Bg5 Be7 15. Bxe7 Kxe7 16. Qd2 Nc6 17. Rfd1 Rag8 {½-½ Krivec,J (2292)-Rozic,V (2178) SLO-ch (Women) 2004 (5)}) 12. a3 {[%emt 0:03:36]} Nbc6 {[%emt 0:03:00]} 13. Be3 {[%emt 0:04:19]} g6 {[%emt 1:08:00]} 14. Ng5 {[%emt 0:05:51]} Bh6 {[%emt 0:00:00]} 15. Qf3 {[%emt 0:05:49]} Bxg5 {[%emt 0:00:00]} 16. Bxg5 {[%emt 0:02:11]} Qb5 {[%emt 0:00:00]} 17. O-O-O {[%emt 0:08:39][%cal Ba1d1,Bd1d3,Bd3g3,Bg3g8][%mdl 32]} Nf5 {[%emt 0:00:00]} 18. Nxf5 {[%emt 0:07:41]} gxf5 {[%emt 0:00:00] Black is weak on the dark squares} 19. Kb1 {[%emt 0:00:44]} a5 {[%emt 0:00:00]} 20. Rd3 {[%emt 0:02:01]} a4 {[%emt 0:00:00]} 21. Rc1 {[%emt 0:00:29]} Na5 {[%emt 0:00:00]} (21... Rc8 $14) 22. Rc5 $16 {[%emt 0:00:41] White is more active.} Qd7 {[%emt 0:00:00][%mdl 8192] [#] Loses the game.} (22... Qa6 $16) 23. Bf6 $18 {[%emt 0:00:52]} Rh6 {[%emt 0:00:00]} 24. Qf4 {[%emt 0:01:47]} Rg6 {[%emt 0:00:00]} 25. Rg3 {[%emt 0:00:24][%cal Of4h6] Black must now prevent Qh6!} ({Stronger than} 25. Qf3 Rg4 $11) 25... Nc6 $2 {[%emt 0:00:00] [#]} (25... b6 26. Qh6 {[%mdl 64] Double Attack} Qb7 27. Rxg6 (27. Qxh5 $2 {perishes.} bxc5 28. Rxg6 fxg6 $19) 27... bxc5 28. Rg8+ Kd7 29. Rxa8 Qxa8 30. Qxh5 (30. dxc5 Qa6 $11) 30... Qf8 31. dxc5 Nb3) 26. Qh6 $3 {[%emt 0:00:39][%mdl 576] Intending Qh8+ and mate. Deflection, Back Rank} Rxh6 {[%emt 0:00:00]} (26... Qc7 27. Rxg6) 27. Rg8# {[%emt 0:00:07] A superb game by Fitzsimons.   Weighted Error Value: White=0.01 (flawless) /Black=0.59} 1-0